[Event "POL-chT 1 Liga 2019"]
[Site "Dzwirzyno"]
[Date "2019.09.13"]
[Round "7.11"]
[White "Kokoszczynski, Jan"]
[Black "Tomaszewski, Kacper"]
[Result "1/2-1/2"]
[ECO "D85"]
[WhiteElo "2289"]
[BlackElo "2363"]
[Annotator "NA"]
[PlyCount "59"]
[EventDate "2019.09.07"]
[EventType "team-tourn"]
[EventCountry "POL"]
[SourceTitle "playchess.com"]
[Source "ChessBase"]
[SourceQuality "1"]
[TimeControl "40/5400+30:1800+30"]

1. d4 {[%emt 0:00:00]} Nf6 {[%emt 0:00:00]} 2. c4 {[%emt 0:00:00]} g6 {[%emt 0:00:00]} 3. Nc3 {[%emt 0:00:00]} d5 {[%emt 0:00:00]} 4. cxd5 {[%emt 0:00:00]} Nxd5 {[%emt 0:00:00]} 5. e4 {[%emt 0:00:03]} Nxc3 {[%emt 0:00:00]} 6. bxc3 {[%emt 0:00:06]} Bg7 {[%emt 0:00:04]} 7. Qa4+ {[%emt 0:00:08]} Qd7 {[%emt 0:00:39]} 8. Qb3 {[%emt 0:00:09]} O-O {[%emt 0:00:21]} 9. Nf3 {[%emt 0:00:56]} b6 {[%emt 0:01:41]} 10. Bb5 {[%emt 0:04:58]} c6 {[%emt 0:03:35]} 11. Be2 {[%emt 0:00:25]} Bb7 {[%emt 0:08:51]} 12. Be3 {[%emt 0:06:49]} c5 {[%emt 0:02:19]} 13. d5 {[%emt 0:03:06]} Qc7 {[%emt 0:25:27]} 14. O-O {[%emt 0:02:35]} Nd7 {[%emt 0:00:07]} 15. Rad1 {[%emt 0:04:05]} c4 {[%emt 0:21:05]} 16. Qa3 {[%emt 0:16:59]} Rfe8 {[%emt 0:03:14]} 17. Bd4 {[%emt 0:05:07]} Bf8 {[%emt 0:10:15]} 18. Qa4 {[%emt 0:04:53]} Rac8 {[%emt 0:03:18]} 19. Bxc4 {[%emt 0:11:22]} Qxc4 {[%emt 0:02:06]} 20. Qxd7 {[%emt 0:00:08]} Red8 {[%emt 0:01:23]} 21. Qh3 {[%emt 0:01:34]} Bg7 {[%emt 0:02:43]} 22. Ng5 {[%emt 0:09:44]} h6 {[%emt 0:01:00]} 23. Nxf7 {[%emt 0:01:28]} Kxf7 {[%emt 0:00:05]} 24. Qe6+ {[%emt 0:00:11]} Kf8 {[%emt 0:00:05]} 25. Bxg7+ {[%emt 0:18:28]} Kxg7 {[%emt 0:00:06]} 26. Qxe7+ {[%emt 0:00:04]} Kg8 {[%emt 0:00:09]} 27. Qe6+ {[%emt 0:00:05]} Kg7 {[%emt 0:00:04]} 28. Qe7+ {[%emt 0:00:05]} Kg8 {[%emt 0:00:03]} 29. Qe6+ {[%emt 0:01:46]} Kg7 {[%emt 0:00:05]} 30. Qe7+ {[%emt 0:03:07]} 1/2-1/2

[Event "POL-chT 1 Liga 2019"]
[Site "Dzwirzyno"]
[Date "2019.09.13"]
[Round "7.12"]
[White "Cieslak, Wiktoria"]
[Black "Moscicka, Pola"]
[Result "0-1"]
[ECO "B68"]
[WhiteElo "2063"]
[BlackElo "1994"]
[Annotator "NA"]
[PlyCount "94"]
[EventDate "2019.09.07"]
[EventType "team-tourn"]
[EventCountry "POL"]
[SourceTitle "playchess.com"]
[Source "ChessBase"]
[SourceQuality "1"]
[TimeControl "40/5400+30:1800+30"]

1. e4 {[%emt 0:00:00]} c5 {[%emt 0:00:00]} 2. Nf3 {[%emt 0:00:00]} Nc6 {[%emt 0:00:00]} 3. d4 {[%emt 0:00:00]} cxd4 {[%emt 0:00:00]} 4. Nxd4 {[%emt 0:00:00]} Nf6 {[%emt 0:00:00]} 5. Nc3 {[%emt 0:00:00]} d6 {[%emt 0:00:19]} 6. Bg5 {[%emt 0:00:55]} e6 {[%emt 0:00:15]} 7. f4 {[%emt 0:02:09]} Be7 {[%emt 0:03:06]} 8. Qd2 {[%emt 0:01:22]} a6 {[%emt 0:01:41]} 9. O-O-O {[%emt 0:00:59]} Bd7 {[%emt 0:00:40]} 10. Be2 {[%emt 0:04:56]} b5 {[%emt 0:05:26]} 11. Nxc6 {[%emt 0:03:12]} Bxc6 {[%emt 0:01:29]} 12. Bf3 {[%emt 0:00:47]} Rc8 {[%emt 0:09:08]} 13. Bxf6 {[%emt 0:08:28]} gxf6 {[%emt 0:00:17]} 14. Kb1 {[%emt 0:02:58]} Qb6 {[%emt 0:05:03]} 15. Rhe1 {[%emt 0:05:31]} a5 {[%emt 0:07:24]} 16. g4 {[%emt 0:05:52]} Rg8 {[%emt 0:03:39]} 17. h4 {[%emt 0:04:27]} a4 {[%emt 0:11:23]} 18. g5 {[%emt 0:08:22]} b4 {[%emt 0:12:14]} 19. Nd5 {[%emt 0:06:40]} Bxd5 {[%emt 0:01:54]} 20. exd5 {[%emt 0:00:06]} e5 {[%emt 0:02:35]} 21. Be4 {[%emt 0:19:30]} Rg7 {[%emt 0:04:09]} 22. Bf5 {[%emt 0:01:09]} Rb8 {[%emt 0:01:16]} 23. gxf6 {[%emt 0:01:05]} Bxf6 {[%emt 0:00:05]} 24. fxe5 {[%emt 0:00:04]} Bxe5 {[%emt 0:00:17]} 25. Qh6 {[%emt 0:00:26]} b3 {[%emt 0:02:51]} 26. cxb3 {[%emt 0:00:50]} Rg2 {[%emt 0:01:55]} 27. Rxe5+ {[%emt 0:01:59]} dxe5 {[%emt 0:00:07]} 28. d6 {[%emt 0:00:04]} Qc5 {[%emt 0:10:12]} 29. d7+ {[%emt 0:00:20]} Ke7 {[%emt 0:01:32]} 30. Qa6 {[%emt 0:07:12]} Rg1 {[%emt 0:01:34]} 31. Qd3 {[%emt 0:02:10]} Rxd1+ {[%emt 0:01:50]} 32. Qxd1 {[%emt 0:00:05]} axb3 {[%emt 0:00:36]} 33. axb3 {[%emt 0:00:41]} h6 {[%emt 0:01:10]} 34. h5 {[%emt 0:02:06]} Qd4 {[%emt 0:01:08]} 35. Qf3 {[%emt 0:02:07]} Rb5 {[%emt 0:02:37]} 36. Bc2 {[%emt 0:08:33]} Rd5 {[%emt 0:01:26]} 37. b4 {[%emt 0:01:12]} Rxd7 {[%emt 0:01:39]} 38. b5 {[%emt 0:00:36]} Qg1+ {[%emt 0:01:07]} 39. Ka2 {[%emt 0:00:04]} Ra7+ {[%emt 0:00:23]} 40. Kb3 {[%emt 0:00:00]} Qd4 {[%emt 0:00:00]} 41. Qc6 {[%emt 0:02:14]} Qd6 {[%emt 0:06:51]} 42. Qe4 {[%emt 0:02:36]} Rd7 {[%emt 0:01:06]} 43. Qh4+ {[%emt 0:01:21]} Kf8 {[%emt 0:02:41]} 44. Bf5 {[%emt 0:03:51]} Qd1+ {[%emt 0:07:21]} 45. Bc2 {[%emt 0:00:15]} Rd3+ {[%emt 0:00:21]} 46. Ka2 {[%emt 0:00:20]} Qxc2 {[%emt 0:00:28]} 47. Qb4+ {[%emt 0:00:09]} Kg8 {[%emt 0:02:03]} 0-1

[Event "POL-chT 1 Liga 2019"]
[Site "Dzwirzyno"]
[Date "2019.09.13"]
[Round "7.14"]
[White "Cyborowski, Lukasz"]
[Black "Flis, Pawel"]
[Result "1-0"]
[ECO "B53"]
[WhiteElo "2509"]
[BlackElo "1897"]
[Annotator "ChessBase"]
[PlyCount "57"]
[EventDate "2019.09.07"]
[EventType "team-tourn"]
[EventCountry "POL"]
[SourceTitle "playchess.com"]
[Source "ChessBase"]
[SourceQuality "1"]
[TimeControl "40/5400+30:1800+30"]

1. e4 {[%emt 0:00:00]} c5 {[%emt 0:00:07]} 2. Nf3 {[%emt 0:00:48]} d6 {[%emt 0:00:18]} 3. d4 {[%emt 0:03:03]} cxd4 {[%emt 0:00:18]} 4. Qxd4 {[%emt 0:00:14]} Nc6 {[%emt 0:00:27]} 5. Bb5 {[%emt 0:00:09]} Bd7 {[%emt 0:00:10]} 6. Bxc6 {[%emt 0:00:44]} Bxc6 {[%emt 0:00:13]} 7. Nc3 {[%emt 0:00:05]} Nf6 {[%emt 0:00:28]} 8. Bg5 {[%emt 0:00:05]} e6 {[%emt 0:00:26]} 9. Qd3 {[%emt 0:02:24]} Be7 {[%emt 0:02:27]} 10. Nd4 {[%emt 0:01:12]} O-O {[%emt 0:02:48]} 11. O-O-O {[%emt 0:04:45]} Qa5 {[%emt 0:05:15]} 12. f4 {[%emt 0:02:58]} Rfc8 {[%emt 0:04:11]} 13. Rhe1 {[%emt 0:04:59]} a6 {[%emt 0:04:56]} 14. f5 {[%emt 0:10:50]} e5 {[%emt 0:17:18]} 15. Nb3 {[%emt 0:03:16]} Qc7 {[%emt 0:01:51]} 16. Bxf6 {[%emt 0:01:44]} gxf6 {[%emt 0:04:26]} 17. Kb1 {[%emt 0:07:00]} b5 {[%emt 0:03:43]} 18. Nd2 {[%emt 0:00:38]} b4 {[%emt 0:09:36]} 19. Nd5 {[%emt 0:00:39]} Qb7 {[%emt 0:03:44]} 20. Nxe7+ {[%emt 0:06:32]} Qxe7 {[%emt 0:00:41]} 21. Nc4 {[%emt 0:01:15]} Rd8 {[%emt 0:05:40]} 22. Qg3+ {[%emt 0:04:24]} Kh8 {[%emt 0:00:44]} 23. Qh4 {[%emt 0:00:05]} Rab8 {[%emt 0:08:24]} 24. Ne3 {[%emt 0:05:53]} Rg8 {[%emt 0:03:30]} 25. Ng4 {[%emt 0:00:14]} Rg5 {[%emt 0:03:08]} 26. h3 {[%emt 0:00:04]} h5 {[%emt 0:10:07]} 27. Nh2 {[%emt 0:05:14]} Kg8 {[%emt 0:02:30]} 28. g4 {[%emt 0:03:58]} hxg4 {[%emt 0:00:21]} 29. Nxg4 {[%emt 0:00:14]} 1-0

[Event "POL-chT 1 Liga 2019"]
[Site "Dzwirzyno"]
[Date "2019.09.13"]
[Round "7.15"]
[White "Szmacinski, Slawomir"]
[Black "Protaziuk, Grzegorz"]
[Result "0-1"]
[ECO "A34"]
[WhiteElo "1848"]
[BlackElo "2334"]
[Annotator "NA"]
[PlyCount "126"]
[EventDate "2019.09.07"]
[EventType "team-tourn"]
[EventCountry "POL"]
[SourceTitle "playchess.com"]
[Source "ChessBase"]
[SourceQuality "1"]
[TimeControl "40/5400+30:1800+30"]

1. Nf3 {[%emt 0:00:00]} Nf6 {[%emt 0:00:00]} 2. c4 {[%emt 0:00:00]} c5 {[%emt 0:00:18]} 3. Nc3 {[%emt 0:00:16]} d5 {[%emt 0:00:03]} 4. cxd5 {[%emt 0:01:34]} Nxd5 {[%emt 0:00:14]} 5. e3 {[%emt 0:01:06]} Nc6 {[%emt 0:01:53]} 6. d4 {[%emt 0:03:13]} cxd4 {[%emt 0:01:42]} 7. Nxd4 {[%emt 0:01:12]} Nxc3 {[%emt 0:04:01]} 8. bxc3 {[%emt 0:00:02]} e5 {[%emt 0:05:46]} 9. Nb5 {[%emt 0:06:19]} Qxd1+ {[%emt 0:01:03]} 10. Kxd1 {[%emt 0:00:07]} Bg4+ {[%emt 0:00:58]} 11. f3 {[%emt 0:01:50]} O-O-O+ {[%emt 0:00:20]} 12. Ke1 {[%emt 0:01:26]} Be6 {[%emt 0:00:11]} 13. Ba3 {[%emt 0:02:21]} Rd7 {[%emt 0:03:33]} 14. Bxf8 {[%emt 0:18:54]} Rxf8 {[%emt 0:00:42]} 15. c4 {[%emt 0:00:06]} Rfd8 {[%emt 0:01:53]} 16. Nc3 {[%emt 0:00:44]} Nb4 {[%emt 0:02:17]} 17. Rc1 {[%emt 0:00:56]} Kb8 {[%emt 0:00:55]} 18. e4 {[%emt 0:01:57]} Rd4 {[%emt 0:06:38]} 19. a3 {[%emt 0:14:39]} Nd3+ {[%emt 0:00:36]} 20. Bxd3 {[%emt 0:00:07]} Rxd3 {[%emt 0:00:04]} 21. Nd5 {[%emt 0:03:15]} Rxa3 {[%emt 0:01:29]} 22. Kf2 {[%emt 0:00:09]} Ra2+ {[%emt 0:00:49]} 23. Kg3 {[%emt 0:01:41]} Rc8 {[%emt 0:10:15]} 24. Rc3 {[%emt 0:01:12]} Bxd5 {[%emt 0:03:31]} 25. exd5 {[%emt 0:00:22]} Rc5 {[%emt 0:00:21]} 26. Re1 {[%emt 0:04:45]} f6 {[%emt 0:00:13]} 27. h4 {[%emt 0:00:41]} Kc7 {[%emt 0:01:24]} 28. f4 {[%emt 0:09:21]} Kd6 {[%emt 0:01:18]} 29. fxe5+ {[%emt 0:01:04]} fxe5 {[%emt 0:00:02]} 30. Rb1 {[%emt 0:00:51]} b6 {[%emt 0:00:57]} 31. h5 {[%emt 0:02:09]} Ra4 {[%emt 0:02:38]} 32. Rbc1 {[%emt 0:00:22]} Rb4 {[%emt 0:00:10]} 33. h6 {[%emt 0:08:53]} gxh6 {[%emt 0:00:13]} 34. Kf3 {[%emt 0:05:23]} a5 {[%emt 0:06:28]} 35. Ke3 {[%emt 0:00:25]} a4 {[%emt 0:04:20]} 36. Kd3 {[%emt 0:01:35]} b5 {[%emt 0:00:44]} 37. cxb5 {[%emt 0:01:50]} Rbxb5 {[%emt 0:00:23]} 38. Rh1 {[%emt 0:00:53]} Kxd5 {[%emt 0:05:31]} 39. Rxh6 {[%emt 0:00:46]} Rxc3+ {[%emt 0:03:11]} 40. Kxc3 {[%emt 0:00:00]} Rb3+ {[%emt 0:00:00]} 41. Kc2 {[%emt 0:00:17]} Rg3 {[%emt 0:00:16]} 42. Rxh7 {[%emt 0:00:29]} Rxg2+ {[%emt 0:00:14]} 43. Kd3 {[%emt 0:00:02]} Rg3+ {[%emt 0:00:09]} 44. Ke2 {[%emt 0:00:09]} Ra3 {[%emt 0:00:55]} 45. Rh8 {[%emt 0:00:53]} Kd4 {[%emt 0:00:36]} 46. Rd8+ {[%emt 0:01:20]} Ke4 {[%emt 0:00:05]} 47. Rh8 {[%emt 0:00:16]} Ra2+ {[%emt 0:00:06]} 48. Kd1 {[%emt 0:00:11]} a3 {[%emt 0:00:05]} 49. Kc1 {[%emt 0:01:01]} Rf2 {[%emt 0:00:08]} 50. Kb1 {[%emt 0:00:18]} Rb2+ {[%emt 0:03:32]} 51. Ka1 {[%emt 0:00:08]} Rd2 {[%emt 0:00:12]} 52. Rh4+ {[%emt 0:00:48]} Kf3 {[%emt 0:03:18]} 53. Rh3+ {[%emt 0:00:10]} Kg2 {[%emt 0:00:45]} 54. Re3 {[%emt 0:02:36]} Rd5 {[%emt 0:00:09]} 55. Rxa3 {[%emt 0:00:21]} e4 {[%emt 0:00:18]} 56. Kb2 {[%emt 0:00:11]} Kf2 {[%emt 0:00:21]} 57. Ra7 {[%emt 0:01:51]} e3 {[%emt 0:00:26]} 58. Kc2 {[%emt 0:03:31]} Rf5 {[%emt 0:02:50]} 59. Rh7 {[%emt 0:00:46]} e2 {[%emt 0:00:12]} 60. Rh2+ {[%emt 0:00:21]} Ke3 {[%emt 0:00:52]} 61. Rh3+ {[%emt 0:02:06]} Rf3 {[%emt 0:00:07]} 62. Rxf3+ {[%emt 0:00:08]} Kxf3 {[%emt 0:00:03]} 63. Kd2 {[%emt 0:00:04]} Kf2 {[%emt 0:00:02]} 0-1

[Event "POL-chT 1 Liga 2019"]
[Site "Dzwirzyno"]
[Date "2019.09.13"]
[Round "7.16"]
[White "Nurkiewicz, Maciej"]
[Black "Redlich, Bogdan"]
[Result "1/2-1/2"]
[ECO "E97"]
[WhiteElo "2334"]
[BlackElo "1600"]
[Annotator "NA"]
[PlyCount "63"]
[EventDate "2019.09.07"]
[EventType "team-tourn"]
[EventCountry "POL"]
[SourceTitle "playchess.com"]
[Source "ChessBase"]
[SourceQuality "1"]
[TimeControl "40/5400+30:1800+30"]

1. d4 {[%emt 0:00:00]} Nf6 {[%emt 0:00:00]} 2. c4 {[%emt 0:00:00]} g6 {[%emt 0:00:01]} 3. Nc3 {[%emt 0:00:00]} Bg7 {[%emt 0:00:25]} 4. e4 {[%emt 0:00:00]} d6 {[%emt 0:00:24]} 5. Nf3 {[%emt 0:00:06]} O-O {[%emt 0:00:45]} 6. Be2 {[%emt 0:00:07]} e5 {[%emt 0:00:34]} 7. O-O {[%emt 0:00:11]} Nc6 {[%emt 0:00:30]} 8. d5 {[%emt 0:00:12]} Ne7 {[%emt 0:00:14]} 9. b4 {[%emt 0:00:09]} a5 {[%emt 0:03:04]} 10. Ba3 {[%emt 0:00:10]} axb4 {[%emt 0:06:28]} 11. Bxb4 {[%emt 0:00:19]} b6 {[%emt 0:00:19]} 12. a4 {[%emt 0:00:52]} Re8 {[%emt 0:12:46]} 13. Nd2 {[%emt 0:14:34]} c5 {[%emt 0:05:19]} 14. Ba3 {[%emt 0:00:30]} Rf8 {[%emt 0:04:40]} 15. Bb2 {[%emt 0:05:02]} Ne8 {[%emt 0:08:43]} 16. Nb5 {[%emt 0:00:37]} f5 {[%emt 0:04:44]} 17. Bc3 {[%emt 0:28:41]} fxe4 {[%emt 0:05:12]} 18. Nxe4 {[%emt 0:00:26]} Nf5 {[%emt 0:12:41]} 19. Bd3 {[%emt 0:19:55]} Bh6 {[%emt 0:04:30]} 20. Bd2 {[%emt 0:09:31]} Bxd2 {[%emt 0:03:34]} 21. Qxd2 {[%emt 0:00:08]} Bd7 {[%emt 0:03:22]} 22. Nbc3 {[%emt 0:02:26]} Nd4 {[%emt 0:01:03]} 23. Qg5 {[%emt 0:04:27]} Qxg5 {[%emt 0:01:27]} 24. Nxg5 {[%emt 0:00:07]} Nf6 {[%emt 0:02:21]} 25. Rfb1 {[%emt 0:02:16]} Ra6 {[%emt 0:00:51]} 26. Ra2 {[%emt 0:00:51]} h6 {[%emt 0:00:56]} 27. Nge4 {[%emt 0:00:36]} Nxe4 {[%emt 0:01:10]} 28. Bxe4 {[%emt 0:00:25]} Kg7 {[%emt 0:04:55]} 29. Rab2 {[%emt 0:01:50]} Rb8 {[%emt 0:01:06]} 30. f3 {[%emt 0:03:51]} g5 {[%emt 0:01:01]} 31. Bd3 {[%emt 0:02:39]} Kf6 {[%emt 0:00:22]} 32. Kf2 {[%emt 0:01:54]} 1/2-1/2

[Event "POL-chT 1 Liga 2019"]
[Site "Dzwirzyno"]
[Date "2019.09.13"]
[Round "7.17"]
[White "Kelm, Robert"]
[Black "Bartel, Michal"]
[Result "0-1"]
[ECO "A06"]
[WhiteElo "1585"]
[BlackElo "2291"]
[Annotator "NA"]
[PlyCount "46"]
[EventDate "2019.09.07"]
[EventType "team-tourn"]
[EventCountry "POL"]
[SourceTitle "playchess.com"]
[Source "ChessBase"]
[SourceQuality "1"]
[TimeControl "40/5400+30:1800+30"]

1. Nf3 {[%emt 0:00:01]} d5 {[%emt 0:00:00]} 2. d4 {[%emt 0:00:27]} a6 {[%emt 0:02:44]} 3. a4 {[%emt 0:00:25]} Nc6 {[%emt 0:00:31]} 4. g3 {[%emt 0:00:07]} Bg4 {[%emt 0:00:20]} 5. Bg2 {[%emt 0:00:04]} Qd7 {[%emt 0:00:08]} 6. Bf4 {[%emt 0:01:51]} f6 {[%emt 0:01:42]} 7. h3 {[%emt 0:05:07]} Bf5 {[%emt 0:04:40]} 8. c3 {[%emt 0:00:43]} g5 {[%emt 0:00:55]} 9. g4 {[%emt 0:01:23]} Bxb1 {[%emt 0:01:08]} 10. Qxb1 {[%emt 0:03:37]} gxf4 {[%emt 0:00:09]} 11. b4 {[%emt 0:00:11]} e6 {[%emt 0:00:26]} 12. g5 {[%emt 0:00:39]} fxg5 {[%emt 0:01:00]} 13. b5 {[%emt 0:00:05]} axb5 {[%emt 0:00:09]} 14. axb5 {[%emt 0:00:02]} Rxa1 {[%emt 0:00:08]} 15. Qxa1 {[%emt 0:00:02]} Nd8 {[%emt 0:00:15]} 16. Ne5 {[%emt 0:00:08]} Qxb5 {[%emt 0:00:23]} 17. O-O {[%emt 0:00:06]} Bd6 {[%emt 0:02:50]} 18. c4 {[%emt 0:04:16]} Qa6 {[%emt 0:01:28]} 19. Qc3 {[%emt 0:00:05]} Bxe5 {[%emt 0:00:14]} 20. cxd5 {[%emt 0:00:10]} Bd6 {[%emt 0:01:31]} 21. dxe6 {[%emt 0:00:26]} Qa3 {[%emt 0:00:44]} 22. Qc4 {[%emt 0:01:01]} Qb4 {[%emt 0:01:26]} 23. Qd5 {[%emt 0:00:16]} Ne7 {[%emt 0:00:49]} 0-1

[Event "POL-chT 1 Liga 2019"]
[Site "Dzwirzyno"]
[Date "2019.09.13"]
[Round "7.18"]
[White "Kulon, Klaudia"]
[Black "Miturova, Magdalena"]
[Result "1-0"]
[ECO "A02"]
[WhiteElo "2339"]
[BlackElo "2219"]
[Annotator "NA"]
[PlyCount "65"]
[EventDate "2019.09.07"]
[EventType "team-tourn"]
[EventCountry "POL"]
[SourceTitle "playchess.com"]
[Source "ChessBase"]
[SourceQuality "1"]
[TimeControl "40/5400+30:1800+30"]

1. f4 {[%emt 0:00:00]} e5 {[%emt 0:02:44]} 2. fxe5 {[%emt 0:00:31]} d6 {[%emt 0:00:07]} 3. Nf3 {[%emt 0:03:50]} dxe5 {[%emt 0:01:24]} 4. e4 {[%emt 0:00:25]} Nf6 {[%emt 0:06:34]} 5. Nc3 {[%emt 0:02:34]} Bg4 {[%emt 0:05:12]} 6. Bc4 {[%emt 0:03:09]} Nc6 {[%emt 0:01:08]} 7. d3 {[%emt 0:01:06]} Bc5 {[%emt 0:04:57]} 8. Bg5 {[%emt 0:02:12]} h6 {[%emt 0:00:35]} 9. Bh4 {[%emt 0:07:36]} g5 {[%emt 0:04:06]} 10. Bg3 {[%emt 0:00:05]} Nh5 {[%emt 0:01:55]} 11. Qd2 {[%emt 0:00:36]} Bxf3 {[%emt 0:23:43]} 12. gxf3 {[%emt 0:00:06]} Nd4 {[%emt 0:02:20]} 13. Rf1 {[%emt 0:02:29]} Qd6 {[%emt 0:03:46]} 14. O-O-O {[%emt 0:03:14]} a6 {[%emt 0:03:34]} 15. Nd5 {[%emt 0:01:24]} b5 {[%emt 0:04:12]} 16. Bb3 {[%emt 0:01:30]} a5 {[%emt 0:01:13]} 17. c3 {[%emt 0:03:14]} Nxb3+ {[%emt 0:10:06]} 18. axb3 {[%emt 0:00:02]} Nxg3 {[%emt 0:03:00]} 19. hxg3 {[%emt 0:00:02]} a4 {[%emt 0:00:53]} 20. b4 {[%emt 0:00:17]} Ba7 {[%emt 0:01:31]} 21. f4 {[%emt 0:00:49]} exf4 {[%emt 0:01:25]} 22. gxf4 {[%emt 0:00:05]} g4 {[%emt 0:00:12]} 23. d4 {[%emt 0:00:50]} Kf8 {[%emt 0:01:41]} 24. f5 {[%emt 0:02:41]} h5 {[%emt 0:04:19]} 25. f6 {[%emt 0:02:14]} Ke8 {[%emt 0:04:34]} 26. Qg5 {[%emt 0:01:21]} Kd7 {[%emt 0:00:40]} 27. Nf4 {[%emt 0:00:14]} Kc6 {[%emt 0:01:40]} 28. e5 {[%emt 0:01:16]} Qd7 {[%emt 0:00:59]} 29. e6 {[%emt 0:00:57]} Qd6 {[%emt 0:02:09]} 30. exf7 {[%emt 0:00:32]} a3 {[%emt 0:01:18]} 31. bxa3 {[%emt 0:00:39]} Bb6 {[%emt 0:02:07]} 32. Kb2 {[%emt 0:00:07]} Rhf8 {[%emt 0:01:01]} 33. Ng6 {[%emt 0:01:13] Kd5} 1-0

[Event "POL-chT 1 Liga 2019"]
[Site "Dzwirzyno"]
[Date "2019.09.13"]
[Round "7.19"]
[White "Golubka, Petro"]
[Black "Kolago, Marcin"]
[Result "1/2-1/2"]
[ECO "E71"]
[WhiteElo "2479"]
[BlackElo "2340"]
[Annotator "ChessBase"]
[PlyCount "45"]
[EventDate "2019.09.07"]
[EventType "team-tourn"]
[EventCountry "POL"]
[SourceTitle "playchess.com"]
[Source "ChessBase"]
[SourceQuality "1"]
[TimeControl "40/5400+30:1800+30"]

1. d4 {[%emt 0:01:49]} Nf6 {[%emt 0:00:00]} 2. c4 {[%emt 0:00:17]} g6 {[%emt 0:00:12]} 3. Nc3 {[%emt 0:00:04]} Bg7 {[%emt 0:00:07]} 4. e4 {[%emt 0:00:03]} d6 {[%emt 0:00:11]} 5. h3 {[%emt 0:00:12]} e5 {[%emt 0:00:45]} 6. d5 {[%emt 0:00:33]} Na6 {[%emt 0:04:47]} 7. Bd3 {[%emt 0:02:18]} h5 {[%emt 0:17:16]} 8. Nf3 {[%emt 0:01:43]} Bh6 {[%emt 0:09:52]} 9. Bxh6 {[%emt 0:09:31]} Rxh6 {[%emt 0:00:00]} 10. Qd2 {[%emt 0:00:19]} Rh8 {[%emt 0:00:20]} 11. h4 {[%emt 0:03:02]} Bg4 {[%emt 0:02:28]} 12. O-O-O {[%emt 0:04:05]} Nd7 {[%emt 0:00:47]} 13. Be2 {[%emt 0:00:41]} Bxf3 {[%emt 0:07:11]} 14. Bxf3 {[%emt 0:00:11]} Qf6 {[%emt 0:00:53]} 15. Rdf1 {[%emt 0:02:03]} Qg7 {[%emt 0:01:39]} 16. Bd1 {[%emt 0:00:47]} Qh6 {[%emt 0:01:09]} 17. Qxh6 {[%emt 0:01:08]} Rxh6 {[%emt 0:01:34]} 18. Kd2 {[%emt 0:02:28]} Ke7 {[%emt 0:03:56]} 19. Rh3 {[%emt 0:02:56]} Rhh8 {[%emt 0:00:55]} 20. Be2 {[%emt 0:00:50]} c6 {[%emt 0:02:25]} 21. Rb1 {[%emt 0:09:00]} Nc7 {[%emt 0:08:34]} 22. b3 {[%emt 0:03:22]} a5 {[%emt 0:00:37]} 23. Bd3 {[%emt 0:00:56]} 1/2-1/2

[Event "POL-chT 1 Liga 2019"]
[Site "Dzwirzyno"]
[Date "2019.09.13"]
[Round "7.21"]
[White "Grabarczyk, Miroslaw"]
[Black "Rawicz, Karol"]
[Result "1/2-1/2"]
[ECO "D02"]
[WhiteElo "2374"]
[BlackElo "2200"]
[Annotator "NA"]
[PlyCount "35"]
[EventDate "2019.09.07"]
[EventType "team-tourn"]
[EventCountry "POL"]
[SourceTitle "playchess.com"]
[Source "ChessBase"]
[SourceQuality "1"]
[TimeControl "40/5400+30:1800+30"]

1. d4 {[%emt 0:00:00]} d5 {[%emt 0:00:00]} 2. Nf3 {[%emt 0:00:11]} Nf6 {[%emt 0:00:00]} 3. g3 {[%emt 0:01:12]} c6 {[%emt 0:02:15]} 4. Bg2 {[%emt 0:00:52]} Bf5 {[%emt 0:00:13]} 5. O-O {[%emt 0:03:07]} e6 {[%emt 0:00:53]} 6. c4 {[%emt 0:03:38]} Be7 {[%emt 0:02:53]} 7. Nc3 {[%emt 0:07:41]} h6 {[%emt 0:09:54]} 8. Re1 {[%emt 0:10:02]} O-O {[%emt 0:10:32]} 9. Qb3 {[%emt 0:02:04]} Qb6 {[%emt 0:04:17]} 10. c5 {[%emt 0:01:06]} Qxb3 {[%emt 0:06:06]} 11. axb3 {[%emt 0:00:08]} Nbd7 {[%emt 0:00:38]} 12. b4 {[%emt 0:00:44]} a6 {[%emt 0:01:07]} 13. Bf4 {[%emt 0:06:27]} g5 {[%emt 0:10:36]} 14. Be3 {[%emt 0:00:27]} Ne4 {[%emt 0:01:16]} 15. Red1 {[%emt 0:05:45]} Rae8 {[%emt 0:10:43]} 16. Ne1 {[%emt 0:08:57]} Bd8 {[%emt 0:06:06]} 17. Nd3 {[%emt 0:06:05]} Bc7 {[%emt 0:03:40]} 18. Ra2 1/2-1/2

[Event "POL-chT 1 Liga 2019"]
[Site "Dzwirzyno"]
[Date "2019.09.13"]
[Round "7.22"]
[White "Jaroch, Karol"]
[Black "Sabuk, Piotr"]
[Result "1/2-1/2"]
[ECO "D59"]
[WhiteElo "2236"]
[BlackElo "2397"]
[Annotator "NA"]
[PlyCount "36"]
[EventDate "2019.09.07"]
[EventType "team-tourn"]
[EventCountry "POL"]
[SourceTitle "playchess.com"]
[Source "ChessBase"]
[SourceQuality "1"]
[TimeControl "40/5400+30:1800+30"]

1. d4 Nf6 2. c4 e6 3. Nf3 b6 4. Bg5 h6 5. Bh4 Be7 6. Nc3 O-O 7. e3 d5 8. cxd5 Nxd5 9. Bxe7 Qxe7 10. Nxd5 exd5 11. Rc1 Be6 12. Bd3 c5 13. dxc5 bxc5 14. O-O Nd7 15. Qc2 Rab8 16. b3 Rfc8 17. Bh7+ Kh8 18. Bf5 Nf6 1/2-1/2

[Event "POL-chT 1 Liga 2019"]
[Site "Dzwirzyno"]
[Date "2019.09.13"]
[Round "7.23"]
[White "Kucza, Karol"]
[Black "Samborski, Henryk"]
[Result "1-0"]
[ECO "B35"]
[WhiteElo "2280"]
[BlackElo "2098"]
[Annotator "NA"]
[PlyCount "59"]
[EventDate "2019.09.07"]
[EventType "team-tourn"]
[EventCountry "POL"]
[SourceTitle "playchess.com"]
[Source "ChessBase"]
[SourceQuality "1"]
[TimeControl "40/5400+30:1800+30"]

1. e4 {[%emt 0:00:00]} c5 {[%emt 0:00:00]} 2. Nf3 {[%emt 0:00:00]} Nc6 {[%emt 0:00:00]} 3. d4 {[%emt 0:01:40]} cxd4 {[%emt 0:00:00]} 4. Nxd4 {[%emt 0:00:03]} g6 {[%emt 0:00:20]} 5. Nc3 {[%emt 0:01:14]} Bg7 {[%emt 0:00:22]} 6. Be3 {[%emt 0:00:06]} Nf6 {[%emt 0:01:45]} 7. Bc4 {[%emt 0:00:49]} O-O {[%emt 0:01:54]} 8. Bb3 {[%emt 0:00:11]} e6 {[%emt 0:13:47]} 9. Ndb5 {[%emt 0:31:07]} d5 {[%emt 0:06:58]} 10. Bc5 {[%emt 0:00:08]} Re8 {[%emt 0:08:59]} 11. Nd6 {[%emt 0:02:10]} Nxe4 {[%emt 0:12:01]} 12. Ncxe4 {[%emt 0:00:59]} dxe4 {[%emt 0:02:03]} 13. Nxe8 {[%emt 0:00:22]} Qa5+ {[%emt 0:01:08]} 14. Qd2 {[%emt 0:03:30]} Qxc5 {[%emt 0:00:22]} 15. Nxg7 {[%emt 0:00:07]} Kxg7 {[%emt 0:00:13]} 16. O-O-O {[%emt 0:00:19]} b5 {[%emt 0:06:05]} 17. Rhe1 {[%emt 0:07:33]} a5 {[%emt 0:03:52]} 18. a4 {[%emt 0:06:17]} bxa4 {[%emt 0:01:06]} 19. Bxa4 {[%emt 0:00:11]} Nb4 {[%emt 0:00:22]} 20. Rxe4 {[%emt 0:03:00]} Bb7 {[%emt 0:01:36]} 21. Qd4+ {[%emt 0:01:30]} Qxd4 {[%emt 0:00:26]} 22. Rexd4 {[%emt 0:00:07]} Bxg2 {[%emt 0:00:18]} 23. Rd8 {[%emt 0:01:06]} Ra6 {[%emt 0:00:58]} 24. R1d6 {[%emt 0:01:19]} Ra7 {[%emt 0:02:07]} 25. R8d7 {[%emt 0:00:11]} Ra8 {[%emt 0:00:05]} 26. c3 {[%emt 0:02:23]} Nd5 {[%emt 0:01:50]} 27. Bc6 {[%emt 0:00:43]} Rc8 {[%emt 0:04:23]} 28. Bb7 {[%emt 0:02:38]} Rc5 {[%emt 0:16:26]} 29. Rxe6 {[%emt 0:01:52]} Bh3 {[%emt 0:01:02]} 30. Bxd5 {[%emt 0:00:39]} 1-0